bitfinex/quotes_ETHUSD_20251213
["timestamp","ask_amount","ask_price","bid_price","bid_amount"]
[1765642343549,4.6004932,3112.9,3112.8,0.9506]
[1765642344048,0.29957935,3112.9,3112.8,0.4794]
[1765642344249,0.80757935,3112.9,3112.8,0.9508]
[1765642344654,0.80757935,3112.9,3112.8,1.4302]
[1765642346025,0.29957935,3112.9,3112.8,1.4302]
[1765642346227,0.80757935,3112.9,3112.8,1.4302]
[1765642346728,0.80757935,3112.9,3112.8,4.64274176]
[1765642347632,0.29957935,3112.9,3112.8,5.42869065]
[1765642347831,0.80757935,3112.9,3112.8,5.42869065]
[1765642348036,0.80757935,3112.9,3112.8,2.21614889]
[1765642348646,0.80757935,3112.9,3112.8,5.42869065]
[1765642348956,0.80757935,3112.9,3112.8,4.94929065]
[1765642351454,0.80757935,3112.9,3112.8,1.73674889]
[1765642352631,0.80757935,3112.9,3112.8,0.9508]
[1765642353328,0.80757935,3112.9,3112.8,4.16334176]
[1765642355970,0.29957935,3112.9,3112.8,4.16334176]
[1765642356260,0.80757935,3112.9,3112.8,4.16334176]
[1765642356759,0.80757935,3112.9,3112.8,0.9508]
[1765642357259,0.80757935,3112.9,3112.8,4.16334176]
[1765642357455,0.80757935,3112.9,3112.8,4.90135029]
[1765642361641,0.80757935,3112.9,3112.8,1.21740853]
[1765642361856,0.80757935,3112.9,3112.8,0.4794]
[1765642362061,1.25247935,3112.9,3112.8,0.002]
[1765642362359,0.80757935,3112.9,3112.8,0.4755]
[1765642362658,0.29957935,3112.9,3112.8,4.16734176]
[1765642363062,0.80657935,3112.9,3112.8,4.16734176]
[1765642363557,0.29957935,3112.9,3112.8,4.16734176]
[1765642363764,0.80657935,3112.9,3112.8,4.16734176]
[1765642363964,0.29957935,3112.9,3112.8,4.16734176]
[1765642364163,0.80657935,3112.9,3112.8,4.16734176]
[1765642365564,0.29957935,3112.9,3112.8,4.90575073]
[1765642365763,0.80657935,3112.9,3112.8,4.90575073]
[1765642367464,0.80657935,3112.9,3112.8,4.16734176]
[1765642368461,0.29957935,3112.9,3112.8,4.16734176]
[1765642368976,0.80657935,3112.9,3112.8,8.8651759]
[1765642369871,0.80657935,3112.9,3112.8,9.83002484]
[1765642371579,0.29957935,3112.9,3112.8,9.83002484]
[1765642371890,0.80657935,3112.9,3112.8,9.83002484]
[1765642372093,0.80657935,3112.9,3112.8,11.83895717]
[1765642378490,0.29957935,3112.9,3112.8,11.83895717]
[1765642378786,0.80657935,3112.9,3112.8,11.83895717]
[1765642381185,0.80657935,3112.9,3112.8,1.44034894]
[1765642381386,1.72997935,3112.9,3112.8,0.002]
[1765642385786,1.24387935,3112.9,3112.8,0.002]
[1765642385990,1.72997935,3112.9,3112.8,0.002]
[1765642388096,5.11541585,3112.9,3112.8,0.002]
[1765642389666,1.90297729,3112.9,3112.8,0.002]
[1765642390790,1.39597729,3112.9,3112.8,0.002]
[1765642391089,1.24387935,3112.9,3112.8,0.002]
[1765642392766,1.72997935,3112.9,3112.8,0.002]
[1765642394194,1.72990857,3112.9,3112.8,0.002]
[1765642394869,1.72990857,3112.9,3112.8,0.4695]
[1765642394870,0.80650857,3112.9,3112.8,0.4695]
[1765642395071,0.29950857,3112.9,3112.8,0.9675]
[1765642395377,0.80650857,3112.9,3112.8,0.4695]
[1765642395572,0.29950857,3112.9,3112.8,0.4695]
[1765642395776,0.80650857,3112.9,3112.8,0.4695]
[1765642395987,0.29950857,3112.9,3112.8,0.4695]
[1765642396179,0.80650857,3112.9,3112.8,0.4695]
[1765642396698,0.80650857,3112.9,3112.8,0.002]
[1765642396887,1.24380857,3112.9,3112.8,0.002]
[1765642397275,1.72990857,3112.9,3112.8,0.002]
[1765642403211,9.8146349,3112.9,3112.8,0.002]
[1765642404796,6.60219634,3112.9,3112.8,0.002]
[1765642405884,9.7916349,3112.9,3112.8,0.002]
[1765642406391,10.37211019,3112.9,3112.8,0.002]
[1765642406600,24.23943919,3112.9,3112.8,0.002]
[1765642406781,20.70641662,3112.9,3112.8,0.002]
[1765642406975,19.79274772,3112.9,3112.8,0.002]
[1765642407509,17.66320872,3112.9,3112.8,0.002]
[1765642408507,10.37213072,3112.9,3112.8,0.002]
[1765642408810,19.13461072,3112.9,3112.8,0.002]
[1765642409106,24.23941163,3112.9,3112.8,0.002]
[1765642409408,0.98597929,3112.8,3112.7,0.002]
[1765642409622,13.9779645,3112.8,3112.7,0.002]
[1765642411416,17.19050626,3112.8,3112.7,0.002]
[1765642412612,18.63797017,3112.8,3112.7,0.002]
[1765642413825,14.44567326,3112.8,3112.7,0.002]
[1765642413993,13.18744926,3112.8,3112.7,0.002]
[1765642414198,11.98574926,3112.8,3112.7,0.002]
[1765642415300,11.47874926,3112.8,3112.7,0.002]
[1765642415496,11.98574926,3112.8,3112.7,0.002]
[1765642418702,12.08019642,3112.8,3112.7,0.002]
[1765642421634,36.80934142,3112.8,3112.7,0.002]
[1765642422035,41.51135412,3112.8,3112.7,0.002]
[1765642424526,26.890077,3112.7,3112.6,0.002]
[1765642424834,29.11250631,3112.7,3112.6,0.002]
[1765642426234,17.65349428,3112.7,3112.6,0.002]
[1765642426632,10.08596328,3112.7,3112.6,0.002]
[1765642426838,8.01038128,3112.7,3112.6,0.002]
[1765642427006,8.47348128,3112.7,3112.6,0.002]
[1765642427643,20.22875028,3112.7,3112.6,0.002]
[1765642428724,28.25446828,3112.7,3112.6,0.002]
[1765642429534,27.82739528,3112.7,3112.6,0.002]
[1765642429730,25.54362828,3112.7,3112.6,0.002]
[1765642430534,21.87071828,3112.7,3112.6,0.002]
[1765642430736,19.31062528,3112.7,3112.6,0.002]
[1765642431720,24.04176728,3112.7,3112.6,0.002]
[1765642431925,23.18926728,3112.7,3112.6,0.002]
[1765642432251,18.52038928,3112.7,3112.6,0.002]
[1765642432925,20.94212528,3112.7,3112.6,0.002]
[1765642434149,16.14652528,3112.7,3112.6,0.002]
[1765642434335,15.51790228,3112.7,3112.6,0.002]
[1765642434945,21.24439928,3112.7,3112.6,0.002]
[1765642435414,17.37857828,3112.7,3112.6,0.002]
[1765642435839,25.28165528,3112.7,3112.6,0.002]
[1765642436047,21.17185728,3112.7,3112.6,0.002]
[1765642436865,27.79388628,3112.7,3112.6,0.002]
[1765642437343,18.45780229,3112.6,3112.5,0.002]
[1765642437637,22.30774936,3112.6,3112.5,0.002]
[1765642437842,22.30620636,3112.6,3112.5,0.002]
[1765642439018,23.63696336,3112.6,3112.5,0.002]
[1765642439445,0.58047529,3112.4,3112.2,0.002]
[1765642439626,1.2065291,3112.3,3112.2,0.002]
[1765642440759,2.08255382,3112.3,3112.2,0.002]
[1765642441042,2.08255382,3112.3,3112.2,0.4535]
[1765642441851,5.87608697,3112.3,3112.2,0.4535]
[1765642442145,4.09306225,3112.3,3112.2,0.9074]
[1765642442344,1.38700439,3112.3,3112.2,0.9074]
[1765642444943,0.88000439,3112.3,3112.2,0.9074]
[1765642445144,0.8065291,3112.3,3112.2,0.9074]
[1765642448358,0.2995291,3112.3,3112.2,0.9074]
[1765642448552,0.8065291,3112.3,3112.2,0.9074]
[1765642449033,0.2995291,3112.3,3112.2,0.9074]
[1765642449233,0.8065291,3112.3,3112.2,0.9074]
[1765642449438,0.2995291,3112.3,3112.2,0.9074]
[1765642449633,0.8065291,3112.3,3112.2,0.9074]
[1765642450781,4.01958696,3112.3,3112.2,0.9074]
[1765642450933,4.74283288,3112.3,3112.2,0.002]
[1765642451128,5.17423288,3112.3,3112.2,0.002]
[1765642451328,5.66613288,3112.3,3112.2,0.002]
[1765642452064,5.17423288,3112.3,3112.2,0.002]
[1765642452662,4.45098696,3112.3,3112.2,0.002]
[1765642453339,4.01958696,3112.3,3112.2,0.4535]
[1765642453540,4.01958696,3112.3,3112.2,0.9074]
[1765642454461,4.01958696,3112.3,3112.2,0.4535]
[1765642454631,4.01958696,3112.3,3112.2,0.9074]
[1765642454960,4.51848696,3112.3,3112.2,0.002]
[1765642455360,4.94358696,3112.3,3112.2,0.002]
[1765642457438,5.75923288,3112.3,3112.2,0.002]
[1765642461253,5.33413288,3112.3,3112.2,0.002]
[1765642462062,1.62217502,3112.3,3112.2,0.502]
[1765642462262,0.8065291,3112.3,3112.2,0.502]
[1765642462437,0.8065291,3112.3,3112.2,0.9816]
[1765642463065,0.8065291,3112.3,3112.2,0.502]
[1765642463273,4.01958696,3112.3,3112.2,0.502]
[1765642463475,4.01958696,3112.3,3112.2,0.002]
[1765642463766,4.45878696,3112.3,3112.2,0.002]
[1765642464361,5.27442133,3112.3,3112.2,0.002]
[1765642465446,1.62216347,3112.3,3112.2,0.4789]
[1765642465645,0.8065291,3112.3,3112.2,0.9746]
[1765642466564,4.01958696,3112.3,3112.2,0.4789]
[1765642466862,3.51258696,3112.3,3112.2,0.4789]
[1765642467062,4.01958696,3112.3,3112.2,0.4789]
[1765642468163,4.45948696,3112.3,3112.2,0.002]
[1765642468361,0.2995291,3112.3,3112.2,0.4789]
[1765642468668,0.8065291,3112.3,3112.2,0.9746]
[1765642470872,0.8065291,3112.3,3112.2,0.4789]
[1765642471174,1.26652889,3112.3,3112.2,0.4789]
[1765642471472,4.47958675,3112.3,3112.2,0.4789]
[1765642475671,1.26652889,3112.3,3112.2,0.4789]
[1765642476047,1.26652889,3112.3,3112.2,0.9746]
[1765642476259,0.8065291,3112.3,3112.2,0.9746]
[1765642478882,0.2995291,3112.3,3112.2,0.9746]
[1765642479182,0.8065291,3112.3,3112.2,0.9746]
[1765642479390,0.2995291,3112.3,3112.2,0.9746]
[1765642479547,0.8065291,3112.3,3112.2,0.9746]
[1765642480183,0.8065291,3112.3,3112.2,0.4789]
[1765642480184,0.2995291,3112.3,3112.2,0.4789]
[1765642480346,0.8065291,3112.3,3112.2,0.4789]
[1765642480546,0.8065291,3112.3,3112.2,0.9746]
[1765642486102,0.8065291,3112.3,3112.2,0.4789]
[1765642486402,0.8065291,3112.3,3112.2,0.9746]
[1765642486897,0.8065291,3112.3,3112.2,0.4789]
[1765642487097,4.91948434,3112.3,3112.2,0.002]
[1765642487300,1.70642648,3112.3,3112.2,0.002]
[1765642487584,1.26652648,3112.3,3112.2,0.4789]
[1765642487788,1.26652648,3112.3,3112.2,0.9746]
[1765642490192,4.47958434,3112.3,3112.2,0.4789]
[1765642490994,0.75952648,3112.3,3112.2,0.4789]
[1765642491292,1.26652648,3112.3,3112.2,0.4789]
[1765642492804,4.47958434,3112.3,3112.2,0.4789]
[1765642494704,1.26652648,3112.3,3112.2,0.4789]
[1765642495501,4.47958434,3112.3,3112.2,0.4789]
[1765642495678,1.26652648,3112.3,3112.2,0.4789]
[1765642497706,5.06005963,3112.3,3112.2,0.4789]
[1765642497907,5.50035963,3112.3,3112.2,0.002]
[1765642498593,5.98345963,3112.3,3112.2,0.002]
[1765642501589,1.84700177,3112.3,3112.2,0.488]
[1765642501920,0.88000439,3112.3,3112.2,0.9766]
[1765642502116,1.38700439,3112.3,3112.2,0.9766]
[1765642502413,5.52376225,3112.3,3112.2,0.002]
[1765642502908,38.99647768,3112.3,3112.2,0.002]
[1765642503209,0.98597929,3112.2,3111.8,0.002]
[1765642503419,0.2015,3111.9,3111.8,0.002]
[1765642503713,1.0080291,3111.9,3111.8,0.002]
[1765642503913,1.5014291,3111.9,3111.8,0.002]
[1765642504306,4.71489996,3111.9,3111.8,0.002]
[1765642505621,0.8110291,3111.9,3111.8,0.002]
[1765642505826,5.02623446,3111.9,3111.8,0.002]
[1765642506316,1.8127636,3111.9,3111.8,0.002]
[1765642506816,5.02623446,3111.9,3111.8,0.488]
[1765642508306,5.02623446,3111.9,3111.8,0.002]
[1765642513023,5.51963446,3111.9,3111.8,0.002]
[1765642514193,1.3012636,3111.9,3111.8,0.488]
[1765642514518,0.8065291,3111.9,3111.8,0.9766]
[1765642515836,0.8065291,3111.9,3111.8,0.488]
[1765642516023,0.8065291,3111.9,3111.8,0.9766]
[1765642516415,0.8065291,3111.9,3111.8,0.488]
[1765642518228,0.2995291,3111.9,3111.8,0.9766]
[1765642518401,0.8065291,3111.9,3111.8,0.9766]
[1765642518797,4.01999996,3111.9,3111.8,0.9766]
[1765642519003,4.80137517,3111.9,3111.8,0.488]
[1765642519931,1.58790431,3111.9,3111.8,0.488]
[1765642520116,0.8065291,3111.9,3111.8,0.9766]
[1765642520730,0.8065291,3111.9,3111.8,0.488]
[1765642521030,0.8065291,3111.9,3111.8,0.9766]
[1765642522631,0.2995291,3111.9,3111.8,0.9766]
[1765642522826,0.8065291,3111.9,3111.8,0.9766]
[1765642524017,0.80618543,3111.9,3111.8,0.9766]
[1765642527339,0.80618543,3111.9,3111.8,0.488]
[1765642527539,5.90813511,3111.9,3111.8,0.002]
[1765642536574,33.87775211,3111.9,3111.8,0.002]
[1765642536752,5.68893299,3111.8,3111.7,0.002]
[1765642536917,39.65383628,3111.8,3111.7,0.002]
[1765642537242,28.94639229,3111.7,3111.6,0.002]
[1765642537419,33.31146775,3111.7,3111.6,0.002]
[1765642537621,5.35105475,3111.7,3111.6,0.002]
[1765642537966,30.62433715,3111.7,3111.6,0.002]
[1765642538867,33.83801456,3111.7,3111.6,0.002]
[1765642539339,38.54096826,3111.7,3111.6,0.002]
[1765642539849,33.83801456,3111.7,3111.6,0.002]
[1765642540237,38.54096826,3111.7,3111.6,0.002]
[1765642540437,41.76235829,3111.7,3111.6,0.002]
[1765642541549,29.35189629,3111.6,3111.5,0.002]
[1765642541733,34.85983542,3111.6,3111.5,0.002]
[1765642542351,34.95428258,3111.6,3111.5,0.002]
[1765642542944,38.16806327,3111.6,3111.5,0.002]
[1765642543134,34.05484999,3111.4,3111.2,0.002]
[1765642543343,35.31273542,3111.4,3111.2,0.002]
[1765642543522,35.70903542,3111.4,3111.2,0.002]
[1765642544019,35.84250011,3111.4,3111.2,0.002]
[1765642544224,35.93694727,3111.4,3111.2,0.002]
[1765642544433,36.3969508,3111.4,3111.2,0.002]
[1765642544833,39.61093807,3111.4,3111.2,0.002]
[1765642545766,11.88614601,3111.4,3111.2,0.002]
[1765642545968,40.25206301,3111.4,3111.2,0.002]
[1765642546276,40.25215665,3111.4,3111.2,0.002]
[1765642546752,32.56598686,3111.3,3111.2,0.002]
[1765642546951,36.9647277,3111.3,3111.2,0.002]
[1765642548730,37.0935192,3111.3,3111.2,0.002]
[1765642549149,29.35189629,3111.2,3110.6,0.002]
[1765642549463,30.59002888,3111.2,3110.6,0.002]
[1765642550260,30.71882079,3111.2,3110.6,0.002]
[1765642550458,31.09024541,3111.2,3110.6,0.002]
[1765642550959,34.81243929,3111.2,3110.6,0.002]
[1765642551472,34.30443929,3111.2,3110.6,0.002]
[1765642551654,0.99337929,3111.1,3110.6,0.002]
[1765642551856,35.20961138,3111.0,3110.6,0.002]
[1765642552039,36.26246207,3111.0,3110.6,0.002]
[1765642552532,36.74756207,3111.0,3110.6,0.002]
[1765642552962,8.38164507,3111.0,3110.6,0.002]
[1765642553262,8.26178392,3111.0,3110.9,0.4788]
[1765642553462,8.76978392,3111.0,3110.9,0.4788]
[1765642554059,28.27168692,3111.0,3110.9,0.002]
[1765642554261,33.47631658,3111.0,3110.9,0.002]
[1765642554466,38.18404624,3111.0,3110.9,0.002]
[1765642554669,33.47631658,3111.0,3110.9,0.002]
[1765642555137,39.96776258,3111.0,3110.9,0.002]
[1765642557072,44.67549224,3111.0,3110.9,0.002]
[1765642558539,39.96776258,3111.0,3110.9,0.002]
[1765642558736,44.67549224,3111.0,3110.9,0.002]
[1765642559242,34.05962595,3110.7,3110.6,0.002]
[1765642559446,34.36381138,3110.7,3110.6,0.002]
[1765642559660,34.85401138,3110.7,3110.6,0.002]
[1765642560077,34.9828232,3110.7,3110.6,0.002]
[1765642560442,39.69055286,3110.7,3110.6,0.002]
[1765642560657,30.18379629,3110.6,3110.5,1e-08]
[1765642560854,31.08542888,3110.6,3110.5,1e-08]
[1765642561272,34.30024274,3110.6,3110.5,1e-08]
[1765642562684,29.35189629,3110.4,3109.6,0.002]
[1765642562981,0.405504,3110.0,3109.6,0.002]
[1765642563155,42.28734705,3109.7,3109.6,0.002]
[1765642563388,42.58653248,3109.7,3109.6,0.002]
[1765642563662,38.3174524,3109.7,3109.6,0.002]
[1765642565250,38.8076524,3109.7,3109.6,0.002]
[1765642565448,41.53884243,3109.7,3109.6,0.002]
[1765642566460,36.81951277,3109.7,3109.6,0.96]
[1765642566660,36.31151277,3109.7,3109.6,0.75076414]
[1765642566984,36.81951277,3109.7,3109.6,0.75076414]
[1765642567485,3.64377929,3109.7,3109.6,0.75076414]
[1765642567648,6.63491271,3109.7,3109.6,0.75076414]
[1765642567846,7.215388,3109.7,3109.6,0.75076414]
[1765642568064,7.620892,3109.7,3109.6,0.75076414]
[1765642568470,11.481016,3109.7,3109.6,0.75076414]
[1765642568973,8.286801,3109.7,3109.6,0.75076414]
[1765642569181,4.603405,3109.7,3109.6,0.75076414]
[1765642569357,7.534485,3109.7,3109.6,0.75076414]
[1765642569559,7.282846,3109.7,3109.6,0.75076414]
[1765642569776,4.095405,3109.7,3109.6,0.75076414]
[1765642570074,4.02292971,3109.7,3109.6,0.75076414]
[1765642570373,4.603405,3109.7,3109.6,0.75076414]
[1765642570975,4.095405,3109.7,3109.6,0.75076414]
[1765642571179,4.02292971,3109.7,3109.6,0.75076414]
[1765642571376,4.603405,3109.7,3109.6,0.75076414]
[1765642571576,4.095405,3109.7,3109.6,0.75076414]
[1765642571874,1.38766072,3109.7,3109.6,0.75076414]
[1765642572480,4.603405,3109.7,3109.6,0.75076414]
[1765642572681,1.38766072,3109.7,3109.6,0.75076414]
[1765642573975,0.29918543,3109.7,3109.6,0.75076414]
[1765642574366,0.508,3109.7,3109.6,1.68392828]
[1765642574686,0.508,3109.7,3109.6,5.0681688]
[1765642575182,7.00989631,3110.7,3109.6,5.0681688]
[1765642575490,12.3753458,3110.7,3110.6,0.6671]
[1765642575776,0.405504,3110.6,3109.7,0.4645]
[1765642575978,0.58047529,3110.3,3109.7,0.4645]
[1765642576277,0.80586455,3110.2,3109.7,0.4645]
[1765642576580,0.29786455,3110.1,3109.7,0.4645]
[1765642576778,0.29786455,3110.0,3109.7,0.4645]
[1765642576950,0.29786455,3109.9,3109.7,0.4645]
[1765642577155,0.80586455,3109.8,3109.7,0.4645]
[1765642577459,0.80586455,3109.8,3109.7,4.17374428]
[1765642577460,0.29786455,3109.8,3109.7,4.17374428]
[1765642577663,0.80586455,3109.8,3109.7,4.68443512]
[1765642577977,0.29786455,3109.8,3109.7,4.68443512]
[1765642578860,3.2149298,3110.5,3109.7,4.68443512]
[1765642578861,6.42900768,3110.9,3109.7,4.68443512]
[1765642579060,0.80593159,3110.8,3109.9,0.4935]
[1765642579382,0.29793159,3110.7,3109.9,0.4935]
[1765642579549,0.29793159,3110.6,3110.0,0.4645]
[1765642579756,0.29793159,3110.5,3110.0,0.4645]
[1765642579955,0.80593159,3110.4,3110.1,0.1736]
[1765642580197,0.29793159,3110.3,3110.1,0.1736]
[1765642580355,0.29793159,3110.2,3110.1,0.1736]
[1765642580555,0.29793159,3110.2,3110.1,0.6671]
[1765642580955,0.29793159,3110.2,3110.1,1.1316]
[1765642581381,0.29793159,3110.2,3110.1,1.66289008]
[1765642582551,0.80593159,3110.2,3110.1,1.66289008]
[1765642583179,0.508,3110.2,3110.1,1.66289008]
[1765642584156,0.508,3110.2,3110.1,1.1316]
[1765642584585,0.508,3110.2,3110.1,2.09736834]
[1765642584984,0.80572619,3110.2,3110.1,2.09736834]
[1765642585159,0.508,3110.2,3110.1,2.09736834]
[1765642587686,0.29765318,3110.3,3110.1,2.09736834]
[1765642587889,0.508,3110.2,3110.1,1.13936834]
[1765642588291,0.508,3110.2,3110.1,0.6453]
[1765642588464,0.508,3110.2,3110.1,2.06976834]
[1765642590005,0.508,3110.2,3110.1,1.104]
[1765642591004,0.29767543,3110.4,3110.1,1.104]
[1765642591203,0.29767543,3110.4,3110.3,0.4717]
[1765642591412,0.58047529,3110.6,3110.3,0.4717]
[1765642591572,0.508,3110.4,3110.1,0.1736]
[1765642592097,0.508,3110.4,3110.3,0.4717]
[1765642592476,0.508,3110.4,3110.3,0.9304]
[1765642595377,0.80611037,3110.4,3110.3,0.9304]
[1765642596109,0.29811037,3110.4,3110.3,0.9304]
[1765642596287,0.80611037,3110.4,3110.3,0.9304]
[1765642596604,4.02113094,3110.4,3110.3,0.9304]
[1765642596804,4.02113094,3110.4,3110.3,0.4717]
[1765642597221,0.80611037,3110.4,3110.3,0.4717]
[1765642597716,0.80611037,3110.4,3110.3,0.9304]
[1765642597914,4.02113094,3110.4,3110.3,0.4717]
[1765642598120,4.74472749,3110.4,3110.3,0.4717]
[1765642598300,5.22712749,3110.4,3110.1,0.1736]
[1765642598482,0.29811037,3110.3,3109.9,0.4587]
[1765642598686,0.29855558,3110.2,3109.9,0.4587]
[1765642599014,3.72302057,3110.4,3110.1,0.4717]
[1765642599306,0.29861834,3110.3,3110.1,0.4717]
[1765642599508,0.29861834,3110.2,3110.1,0.4587]
[1765642599812,0.29861834,3110.2,3110.1,0.6323]
[1765642600005,0.29861834,3110.2,3110.1,1.104]
[1765642601706,0.29861834,3110.2,3110.1,0.6453]
[1765642601902,3.51384565,3110.2,3110.1,0.4717]
[1765642602281,4.71993304,3110.2,3109.7,0.4587]
[1765642602484,0.77141834,3110.1,3109.4,0.4587]
[1765642602796,1.27941834,3110.0,3109.3,0.4737]
[1765642602996,0.29861834,3109.9,3109.3,0.002]
[1765642603216,0.29861834,3109.8,3109.3,0.002]
[1765642603429,0.80661834,3109.7,3109.3,0.4607]
[1765642603590,0.29861834,3109.6,3109.3,3.67678282]
[1765642603920,0.29861834,3109.5,3109.3,3.67678282]
[1765642604123,0.80661834,3109.4,3109.3,0.002]
[1765642604626,1.28901834,3109.4,3109.3,0.002]
[1765642604830,1.2571117,3109.4,3109.3,0.002]
[1765642605324,0.29861834,3109.4,3109.3,0.4737]
[1765642605628,0.29861834,3109.4,3109.3,0.9324]
[1765642605629,0.80661834,3109.4,3109.3,0.9324]
[1765642607727,0.29861834,3109.4,3109.3,0.9324]
[1765642607901,0.80661834,3109.4,3109.3,0.9324]
[1765642609221,0.29861834,3109.4,3109.3,0.9324]
[1765642609432,0.80661834,3109.4,3109.3,4.58166272]
[1765642609612,0.29861834,3109.4,3109.3,4.58166272]
[1765642609929,0.80661834,3109.4,3109.3,4.58166272]
[1765642610704,0.29861834,3109.4,3109.3,4.58166272]
[1765642610906,0.80661834,3109.4,3109.3,4.61382429]
[1765642612828,3.21536742,3110.1,3109.3,4.61382429]
[1765642612829,0.508,3109.5,3109.3,7.79782069]
[1765642613035,0.508,3109.5,3109.4,1.70938278]
[1765642613207,0.80674076,3109.5,3109.4,2.18108278]
[1765642614024,0.80674076,3109.5,3109.4,0.4717]
[1765642614554,1.28914076,3109.5,3109.3,0.002]
[1765642614710,0.29874076,3109.4,3109.3,0.002]
[1765642615142,0.29874076,3109.4,3109.3,0.4633]
[1765642616142,0.80674076,3109.4,3109.3,0.956]
[1765642618438,0.80674076,3109.4,3109.3,0.4633]
[1765642619410,1.30044076,3109.4,3109.3,0.002]
[1765642620242,1.75654076,3109.4,3109.3,0.002]
[1765642620437,1.30044076,3109.4,3109.3,0.002]
[1765642620747,1.75654076,3109.4,3109.3,0.002]
[1765642621043,5.4698481,3109.4,3109.3,0.002]
[1765642623649,5.17110734,3109.4,3109.3,0.002]
[1765642623858,5.46975534,3109.4,3109.3,0.002]
[1765642624148,2.2537008,3109.4,3109.3,0.002]
[1765642626116,5.46975534,3109.4,3109.3,0.002]
[1765642626311,1.7976008,3109.4,3109.3,0.002]
[1765642626640,0.806648,3109.4,3109.3,0.956]
[1765642628726,0.806648,3109.4,3109.3,0.4633]
[1765642628921,0.792348,3109.4,3109.3,0.002]
[1765642629271,1.300348,3109.4,3109.3,0.002]
[1765642629642,0.806648,3109.4,3109.3,0.4633]
[1765642630355,1.300348,3109.4,3109.3,0.002]
[1765642634044,0.806648,3109.4,3109.3,0.4633]
[1765642634639,0.806648,3109.4,3109.3,0.956]
[1765642635575,0.298648,3109.4,3109.3,4.60762927]
[1765642635785,0.298648,3109.4,3109.3,1.3914713]
[1765642635994,0.298648,3109.4,3109.3,4.60762927]
[1765642638267,0.298648,3109.4,3109.3,0.002]
[1765642638268,1.300348,3109.4,3109.3,0.002]
[1765642638674,0.806648,3109.4,3109.3,0.4633]
[1765642640578,1.300348,3109.4,3109.3,0.002]
[1765642640879,1.756448,3109.4,3109.3,0.002]
[1765642642387,0.298648,3109.4,3109.3,0.6812]
[1765642642695,0.298648,3109.4,3109.3,1.68886122]
[1765642643899,0.298648,3109.4,3109.3,4.90501919]
[1765642644906,0.298648,3109.4,3109.3,9.61443141]
[1765642645896,0.298648,3109.4,3109.3,4.90501919]
[1765642646108,0.298648,3109.4,3109.3,0.002]
[1765642646395,0.298648,3109.4,3109.3,3.67795797]
[1765642647392,0.298648,3109.4,3109.3,4.14775797]
[1765642652301,0.298648,3109.4,3109.3,0.9316]
[1765642652507,0.298648,3109.4,3109.3,3.67795797]
[1765642652672,0.298648,3109.4,3109.3,4.49385377]
[1765642653312,0.298648,3109.4,3109.3,1.2776958]
[1765642653558,0.759448,3109.4,3109.3,0.002]
[1765642654369,1.247848,3109.4,3109.3,0.002]
[1765642654991,0.759448,3109.4,3109.3,0.002]
[1765642655699,1.247848,3109.4,3109.3,0.002]
[1765642655898,5.95769451,3109.4,3109.3,0.002]
[1765642656110,6.92586724,3109.4,3109.3,0.002]
[1765642657488,10.14192178,3109.4,3109.3,0.002]
[1765642658185,10.14249126,3109.4,3109.3,0.002]
[1765642665996,5.43264475,3109.4,3109.3,0.002]
[1765642666203,11.13040506,3109.4,3109.3,0.002]
[1765642667121,11.22485222,3109.4,3109.3,0.002]
[1765642668121,23.44250022,3109.4,3109.3,0.002]
[1765642669920,18.7307192,3109.4,3109.3,0.002]
[1765642670496,18.63627204,3109.4,3109.3,0.002]
[1765642670923,6.03272004,3109.4,3109.3,0.002]
[1765642671224,4.48407202,3109.4,3109.3,0.002]
[1765642671414,3.97607202,3109.4,3109.3,0.002]
[1765642671594,4.48407202,3109.4,3109.3,0.002]
[1765642674625,4.97247202,3109.4,3109.3,0.002]
[1765642678324,3.97607202,3109.4,3109.3,0.002]
[1765642678531,4.48407202,3109.4,3109.3,0.002]
[1765642678729,5.77082042,3109.4,3109.3,0.002]
[1765642679839,6.22652042,3109.4,3109.3,0.002]
[1765642680329,5.31002042,3109.4,3109.3,0.002]
[1765642680734,6.25412042,3109.4,3109.3,0.002]
[1765642681735,23.48284573,3109.4,3109.3,0.002]
[1765642682616,40.31779773,3109.4,3109.3,0.002]
[1765642683558,0.98597929,3109.3,3109.0,0.002]
[1765642683707,5.82036031,3109.1,3109.0,0.002]
[1765642684040,6.11957779,3109.1,3109.0,0.002]
[1765642684231,6.57527779,3109.1,3109.0,0.002]
[1765642684431,9.79164265,3109.1,3109.0,0.002]
[1765642687515,16.93292765,3109.1,3109.0,0.002]
[1765642687750,18.21967605,3109.1,3109.0,0.002]
[1765642687955,18.22168975,3109.1,3109.0,0.002]
[1765642690714,39.44632175,3109.1,3109.0,0.002]
[1765642691648,35.10444675,3109.1,3109.0,0.002]
[1765642691952,24.32510975,3109.1,3109.0,0.002]
[1765642692644,37.18904475,3109.1,3109.0,0.002]
[1765642692838,32.51444475,3109.1,3109.0,0.002]
[1765642693518,32.10746875,3109.1,3109.0,0.002]
[1765642693832,29.10746875,3109.1,3109.0,0.002]
[1765642694855,33.58854575,3109.1,3109.0,0.002]
[1765642695060,0.405504,3109.0,3108.3,0.002]
[1765642695268,0.4884,3108.4,3108.3,0.002]
[1765642695437,1.29561748,3108.4,3108.3,0.002]
[1765642695754,4.51270665,3108.4,3108.3,0.002]
[1765642696452,4.02430665,3108.4,3108.3,0.5008]
[1765642697249,3.51630665,3108.4,3108.3,0.5008]
[1765642697456,4.02430665,3108.4,3108.3,0.5008]
[1765642697754,4.02430665,3108.4,3108.3,0.9668]
[1765642698153,4.02430665,3108.4,3108.3,0.5008]
[1765642701355,0.29921748,3108.4,3108.3,0.9668]
[1765642701555,0.80721748,3108.4,3108.3,1.40323408]
[1765642702149,0.29921748,3108.4,3108.3,0.9668]
[1765642702658,0.80721748,3108.4,3108.3,0.9668]
[1765642703567,0.29921748,3108.4,3108.3,0.9668]